bitfinex-derivatives/quotes_ETHF0:USTF0_20241102
["timestamp","ask_amount","ask_price","bid_price","bid_amount"]
[1730516685136,3.43777741,2514.8,2514.7,1.02350752]
[1730516685532,3.11955741,2514.8,2514.7,1.02350752]
[1730516685727,7.16683474,2514.9,2514.7,1.02350752]
[1730516685728,6.64557741,2514.9,2514.7,1.02350752]
[1730516685931,6.64557741,2514.9,2514.7,0.31824]
[1730516686336,3.43777741,2514.9,2514.7,0.31824]
[1730516686526,6.64557741,2514.9,2514.7,0.31824]
[1730516686926,3.43777741,2514.9,2514.7,0.31824]
[1730516687128,3.43777741,2514.9,2514.8,0.31822]
[1730516687335,3.43777741,2514.9,2514.6,0.8571]
[1730516687532,6.64557741,2514.9,2514.7,1.02344993]
[1730516687733,6.64557741,2514.9,2514.7,0.31823]
[1730516688535,6.64557741,2514.9,2514.6,0.8571]
[1730516688730,3.43777741,2514.9,2514.7,1.0234315]
[1730516688931,6.64557741,2514.9,2514.7,0.31822]
[1730516689337,0.8816,2514.8,2514.7,0.31822]
[1730516689543,0.8816,2514.8,2514.7,0.44259905]
[1730516689947,0.8816,2514.8,2514.7,0.44259821]
[1730516690239,0.8816,2514.8,2514.6,0.8571]
[1730516690441,1.19983,2514.8,2514.6,1.17534]
[1730516690837,1.19983,2514.8,2514.6,0.8571]
[1730516691037,1.19983,2514.8,2514.7,0.31824]
[1730516694444,0.8816,2514.8,2514.7,0.31824]
[1730516695648,1.19982,2514.8,2514.7,0.31824]
[1730516695848,4.84063474,2514.8,2514.7,0.31824]
[1730516697039,4.52241474,2514.8,2514.6,0.8571]
[1730516697241,3.43629601,2514.7,2514.6,1.17534]
[1730516697445,3.43629601,2514.7,2514.6,1.29972256]
[1730516697646,3.43629601,2514.7,2514.6,1.88051997]
[1730516698241,0.31824,2514.7,2514.6,1.88051997]
[1730516699451,0.31824,2514.7,2514.6,0.12438256]
[1730516699649,0.75314,2514.7,2514.6,0.12438256]
[1730516699944,0.75314,2514.7,2514.5,0.31826]
[1730516699945,0.4349,2514.7,2514.5,0.31826]
[1730516700142,3.43645336,2514.6,2514.5,0.31826]
[1730516700344,3.43645336,2514.6,2514.5,1.02350159]
[1730516700547,3.43645336,2514.6,2514.5,0.31826]
[1730516700743,3.43645336,2514.6,2514.5,1.02350165]
[1730516700949,0.31825,2514.6,2514.5,1.02350165]
[1730516701551,0.31825,2514.6,2514.5,0.70524165]
[1730516701752,0.31826,2514.5,2514.4,1.19757]
[1730516701948,1.19096,2514.5,2514.4,1.90283308]
[1730516703051,1.19096,2514.5,2514.4,1.19757]
[1730516703250,1.19096,2514.5,2514.4,1.9028174]
[1730516706553,1.19096,2514.5,2514.4,1.90278362]
[1730516707049,1.19096,2514.5,2514.4,1.90278713]
[1730516710150,1.19096,2514.5,2514.4,1.9027783]
[1730516712557,1.19096,2514.5,2514.4,1.3219639]
[1730516713554,1.19096,2514.5,2514.4,1.32196219]
[1730516713860,0.75646,2514.5,2514.4,1.32196219]
[1730516717159,0.75646,2514.5,2514.4,1.19757]
[1730516717365,0.75646,2514.5,2514.4,1.32196247]
[1730516717558,0.75646,2514.5,2514.4,1.32196246]
[1730516719366,0.75646,2514.5,2514.4,0.12439246]
[1730516719367,1.89983738,2514.5,2514.4,0.12439246]
[1730516719558,0.31829,2514.3,2514.2,0.76009]
[1730516719759,3.52609,2514.3,2514.2,0.76009]
[1730516720253,3.2078,2514.3,2514.2,0.76009]
[1730516721167,3.2078,2514.3,2514.2,1.34084932]
[1730516721964,4.0738126,2514.5,2514.2,1.34085932]
[1730516722560,0.31829,2514.3,2514.2,1.34085932]
[1730516725767,0.31829,2514.3,2514.2,0.7601]
[1730516727170,6.32355453,2514.4,2514.2,0.7601]
[1730516727472,6.64183453,2514.4,2514.2,0.76009]
[1730516727961,6.32355453,2514.4,2514.2,0.76009]
[1730516728157,0.31829,2514.3,2514.2,0.76009]
[1730516731370,6.32355453,2514.4,2514.2,0.76009]
[1730516731575,6.64183453,2514.4,2514.2,0.76009]
[1730516732178,6.64183453,2514.4,2514.3,0.31829]
[1730516732373,3.52608,2514.4,2514.3,0.31829]
[1730516732675,3.52608,2514.4,2514.2,0.76009]
[1730516732869,6.64183453,2514.4,2514.2,0.76009]
[1730516733273,0.31829,2514.3,2514.2,0.4418]
[1730516733487,0.31829,2514.3,2514.2,0.7601]
[1730516733679,6.32355453,2514.4,2514.2,0.4418]
[1730516733880,6.64183453,2514.4,2514.2,0.4418]
[1730516734180,3.2078,2514.4,2514.3,0.31829]
[1730516734372,3.2078,2514.4,2514.3,0.74529]
[1730516734573,3.2078,2514.4,2514.3,0.86968383]
[1730516734774,5.80468454,2514.4,2514.3,5.42679193]
[1730516735382,5.80468454,2514.4,2514.3,0.86968383]
[1730516735683,3.2078,2514.4,2514.3,0.86968383]
[1730516736475,0.31827,2514.5,2514.3,0.86968383]
[1730516736675,0.31827,2514.5,2514.4,0.4468]
[1730516736979,0.31827,2514.5,2514.4,0.76507]
[1730516737379,7.91173191,2514.6,2514.4,0.76507]
[1730516737584,8.22999191,2514.6,2514.4,0.76507]
[1730516737776,7.08661453,2514.6,2514.5,0.4428]
[1730516738473,6.76835453,2514.6,2514.5,0.4428]
[1730516738675,7.08660453,2514.6,2514.5,0.4428]
[1730516739188,3.97085,2514.6,2514.5,0.4428]
[1730516739383,7.08660453,2514.6,2514.5,0.4428]
[1730516742575,6.32355453,2514.6,2514.5,0.76106]
[1730516743982,6.64180453,2514.6,2514.5,0.76106]
[1730516744584,3.43400453,2514.6,2514.5,0.76106]
[1730516744977,3.43400453,2514.6,2514.5,0.4428]
[1730516745287,3.86950453,2514.6,2514.5,0.76106]
[1730516746678,3.86950453,2514.6,2514.5,0.4428]
[1730516748491,3.86950453,2514.6,2514.5,0.76106]
[1730516751977,3.86950453,2514.6,2514.5,0.4428]
[1730516753288,3.96155,2514.6,2514.5,0.4428]
[1730516753591,7.08176978,2514.6,2514.5,0.4428]
[1730516753799,7.08201207,2514.6,2514.5,0.4428]
[1730516754085,3.96155,2514.6,2514.5,0.4428]
[1730516757995,0.75375,2514.6,2514.5,0.4428]
[1730516758389,3.96155,2514.6,2514.5,0.4428]
[1730516759392,6.76397096,2514.6,2514.5,0.76106]
[1730516759588,7.08222096,2514.6,2514.5,0.76106]
[1730516760095,3.96155,2514.6,2514.5,0.76106]
[1730516760601,0.75375,2514.6,2514.5,0.76106]
[1730516760791,7.0822128,2514.6,2514.5,0.76106]
[1730516761292,6.3284628,2514.6,2514.5,0.76106]
[1730516761500,6.6467128,2514.6,2514.5,0.76106]
[1730516762892,6.6467128,2514.6,2514.5,0.4428]
[1730516763292,6.6467128,2514.6,2514.5,0.76106]
[1730516763592,6.6467128,2514.6,2514.5,0.4428]
[1730516767194,3.4389128,2514.6,2514.5,0.4428]
[1730516767503,6.6467128,2514.6,2514.5,0.4428]
[1730516768000,3.4389128,2514.6,2514.5,0.4428]
[1730516768195,0.31825,2514.6,2514.5,0.4428]
[1730516768392,6.64639776,2514.6,2514.5,0.4428]
[1730516768690,6.64635381,2514.6,2514.5,0.4428]
[1730516768896,6.64641578,2514.6,2514.5,0.4428]
[1730516769599,3.43861578,2514.6,2514.5,0.4428]
[1730516770496,3.12036578,2514.6,2514.5,0.76106]
[1730516770698,3.43861578,2514.6,2514.5,0.4428]
[1730516771705,3.43861578,2514.6,2514.5,0.76106]
[1730516771896,3.43861578,2514.6,2514.5,0.4428]
[1730516772091,3.43861578,2514.6,2514.5,0.56719299]
[1730516772598,3.43861578,2514.6,2514.5,0.88545288]
[1730516772801,3.43861578,2514.6,2514.5,1.14813608]
[1730516773000,3.43861578,2514.6,2514.5,0.56719288]
[1730516773508,3.43861578,2514.6,2514.5,0.4428]
[1730516773805,3.43861578,2514.6,2514.5,0.56719185]
[1730516774704,6.64641578,2514.6,2514.5,0.56719185]
[1730516775104,6.32816578,2514.6,2514.5,1.46646435]
[1730516775306,6.64641578,2514.6,2514.5,1.46646435]
[1730516775503,6.32816578,2514.6,2514.5,1.46646435]
[1730516775807,6.32816578,2514.6,2514.5,0.76106]
[1730516776107,6.32816578,2514.6,2514.5,1.46650043]
[1730516776510,6.64641578,2514.6,2514.5,1.14824043]
[1730516777707,6.32816578,2514.6,2514.5,1.46650043]
[1730516778515,3.12036578,2514.6,2514.5,1.14824043]
[1730516778694,3.43861578,2514.6,2514.5,1.14824043]
[1730516779097,3.12036578,2514.6,2514.5,1.14824043]
[1730516779306,3.12036578,2514.6,2514.5,1.34229449]
[1730516779500,3.9538526,2514.7,2514.5,1.14842457]
[1730516779709,3.12268081,2514.6,2514.5,0.76106]
[1730516779903,3.12268081,2514.6,2514.5,1.4667907]
[1730516780198,3.12268081,2514.6,2514.5,2.39702265]
[1730516780509,3.12268081,2514.6,2514.5,1.4667907]
[1730516781498,3.12268081,2514.6,2514.5,2.61016808]
[1730516781704,3.12268081,2514.7,2514.6,0.31825]
[1730516781999,3.4411527,2514.8,2514.6,1.0239707]
[1730516782208,0.31823,2514.8,2514.7,1.1292307]
[1730516782410,3.44069856,2514.8,2514.7,1.1292307]
[1730516782612,3.12246856,2514.8,2514.7,1.4474707]
[1730516782811,3.12246856,2514.8,2514.7,0.86612829]
[1730516783114,7.1616326,2514.9,2514.7,0.86612829]
[1730516783318,3.6356126,2514.8,2514.7,0.4235]
[1730516783504,3.6356126,2514.8,2514.7,0.86611961]
[1730516784401,6.8434126,2514.8,2514.7,0.86611961]
[1730516785302,3.6356126,2514.8,2514.7,0.86611961]
[1730516785510,6.8434126,2514.8,2514.7,0.86611961]
[1730516786614,6.8434126,2514.8,2514.7,0.86612128]
[1730516786907,7.1616326,2514.8,2514.7,0.12438128]
[1730516787104,8.44848998,2514.8,2514.5,0.818]
[1730516787305,1.24085,2514.7,2514.6,0.70545598]
[1730516787899,4.0441437,2514.7,2514.6,1.02370598]
[1730516788202,0.9226,2514.7,2514.6,1.02370598]
[1730516788413,4.36224913,2514.7,2514.6,1.02370598]
[1730516788611,1.24084,2514.7,2514.6,1.02370598]
[1730516788909,1.24084,2514.7,2514.6,0.70545598]
[1730516789299,0.9226,2514.7,2514.6,0.70545598]
[1730516789505,4.0440173,2514.7,2514.6,1.02370598]
[1730516789808,4.0440173,2514.7,2514.6,0.31825]
[1730516789809,0.9226,2514.7,2514.6,0.31825]
[1730516790109,0.9226,2514.7,2514.6,1.02368626]
[1730516790410,4.3621207,2514.7,2514.6,1.02367135]
[1730516790613,3.1212807,2514.7,2514.6,2.16704873]
[1730516790909,6.3290807,2514.8,2514.7,0.31824]
[1730516791110,6.3290807,2514.8,2514.7,2.16703873]
[1730516791504,3.2078,2514.8,2514.7,2.16703873]
[1730516793102,3.1212807,2514.9,2514.7,1.84879873]
[1730516793303,3.1212807,2514.9,2514.8,0.31822]
[1730516793503,3.1212807,2514.9,2514.8,0.74892]
[1730516794418,3.1212807,2514.9,2514.8,0.87329221]
[1730516794606,3.1212807,2515.0,2514.9,0.31821]
[1730516794806,3.1212807,2515.0,2514.9,0.75941]
[1730516795608,3.6469,2515.1,2515.0,0.3182]
[1730516796007,3.96509,2515.1,2514.9,0.75941]
[1730516796212,3.1195001,2515.0,2514.9,0.75941]
[1730516797815,3.96509,2515.1,2515.0,0.3182]
[1730516797816,6.7664001,2515.1,2515.0,0.3182]
[1730516798011,6.7664001,2515.1,2514.9,0.4412]
[1730516798209,7.0845901,2515.1,2514.9,0.75941]
[1730516799913,7.0845901,2515.1,2514.9,1.57741]
[1730516800413,6.7664001,2515.1,2515.0,0.3182]
[1730516801304,7.0845901,2515.1,2515.0,0.3182]
[1730516801903,6.7664001,2515.1,2515.0,0.3182]
[1730516803911,3.6469,2515.1,2515.0,0.3182]
[1730516805312,3.96509,2515.1,2514.9,1.90278738]
[1730516805520,3.96509,2515.1,2514.9,2.72078738]
[1730516805723,3.6469,2515.1,2514.9,2.40257738]
[1730516805916,7.0845901,2515.1,2514.9,2.72077738]
[1730516806316,3.1195001,2515.0,2514.9,2.72077738]
[1730516808221,3.4377001,2515.0,2514.9,0.4412]
[1730516808427,3.4377001,2515.0,2514.9,0.75941]
[1730516810038,0.3182,2515.0,2514.9,0.75941]
[1730516810233,3.1195001,2515.0,2514.9,0.75941]
[1730516811038,3.4377001,2515.0,2514.9,0.75941]
[1730516811541,3.1195001,2515.0,2514.9,0.75941]
[1730516811837,3.4377001,2515.0,2514.9,0.75941]
[1730516812429,3.1195001,2515.0,2514.9,1.90278738]
[1730516812630,3.8767901,2515.1,2515.0,0.3182]
[1730516813038,0.75729,2515.1,2515.0,0.3182]
[1730516814144,0.4391,2515.1,2515.0,0.3182]
[1730516814741,0.4391,2515.1,2514.9,1.90277738]
[1730516814934,0.4391,2515.1,2515.0,0.3182]
[1730516815140,0.75729,2515.1,2515.0,0.3182]
[1730516817141,0.4391,2515.1,2515.0,0.3182]
[1730516817946,3.6469,2515.1,2515.0,0.3182]
[1730516819541,3.96509,2515.1,2515.0,0.3182]
[1730516819738,3.6469,2515.1,2515.0,0.3182]
[1730516819937,3.96509,2515.1,2515.0,0.3182]
[1730516820147,3.96509,2515.1,2514.9,1.90277738]
[1730516820343,3.96509,2515.1,2515.0,0.3182]
[1730516820344,3.6469,2515.1,2515.0,0.3182]
[1730516822246,0.4391,2515.1,2515.0,0.3182]
[1730516823050,0.75729,2515.1,2515.0,0.3182]
[1730516823243,0.4391,2515.1,2515.0,0.3182]
[1730516829749,4.0747126,2515.1,2515.0,0.3182]
[1730516830054,0.4391,2515.1,2515.0,0.3182]
[1730516830554,4.0747126,2515.1,2515.0,0.3182]
[1730516832454,0.4391,2515.1,2515.0,0.3182]
[1730516832660,4.0747126,2515.1,2515.0,0.3182]
[1730516833356,0.4391,2515.1,2515.0,0.44256499]
[1730516833655,4.0747126,2515.1,2515.0,0.3182]
[1730516833855,0.4391,2515.1,2515.0,0.3182]
[1730516834054,4.0747126,2515.1,2515.0,0.3182]
[1730516836054,7.19495483,2515.1,2515.0,0.3182]
[1730516836254,3.87753223,2515.1,2514.9,1.58457738]
[1730516836451,3.55934223,2515.1,2514.9,1.58457738]
[1730516836657,3.87753223,2515.1,2515.0,0.3182]
[1730516837057,3.55934223,2515.1,2515.0,0.3182]
[1730516838463,3.56026232,2515.1,2515.0,0.3182]
[1730516839056,3.56026232,2515.1,2514.8,0.4307]
[1730516839057,0.4391,2515.1,2514.8,0.4307]
[1730516839257,3.2078,2514.9,2514.8,0.74892]
[1730516839465,3.2078,2514.9,2514.8,0.87329094]
[1730516839758,3.43927943,2515.0,2514.9,0.31821]
[1730516839954,3.12107943,2515.0,2514.9,0.31821]
[1730516840154,3.12107943,2515.0,2514.8,0.4307]
[1730516840349,3.12107943,2515.0,2514.8,0.74892]
[1730516840350,3.43928943,2515.0,2514.8,0.74892]
[1730516840550,0.4472,2514.9,2514.8,0.74892]
[1730516840763,7.09428943,2514.9,2514.8,0.87329544]
[1730516841468,6.77607943,2514.9,2514.8,1.45454051]
[1730516841963,6.77607943,2514.9,2514.8,0.74892]
[1730516842156,7.23507943,2514.9,2514.8,1.45453963]
[1730516842661,8.32148943,2514.9,2514.8,1.45453963]
[1730516842865,11.21107943,2514.9,2514.8,1.45453963]
[1730516843270,11.7256126,2514.9,2514.8,1.45453963]
[1730516844270,7.7496126,2514.9,2514.8,1.45453963]
[1730516844474,11.7256126,2514.9,2514.8,1.45453963]
[1730516845379,11.7256126,2514.9,2514.8,1.45448172]
[1730516845380,4.5418126,2514.9,2514.8,1.45448172]
[1730516845564,7.7496126,2514.9,2514.8,1.45448172]
[1730516845767,7.7496126,2514.9,2514.8,1.33007247]
[1730516845964,7.7496126,2514.9,2514.8,1.45444788]
[1730516846963,4.5418126,2514.9,2514.8,1.45444788]
[1730516848371,3.6356126,2514.9,2514.8,1.89624788]
[1730516848564,3.6356126,2514.9,2514.8,1.31509541]
[1730516850464,3.6356126,2514.9,2514.8,1.76039541]
[1730516851173,3.6356126,2514.9,2514.8,3.48483526]
[1730516851374,3.6356126,2514.9,2514.8,2.90377279]
[1730516852368,3.6356126,2514.9,2514.8,2.9037696]
[1730516854774,3.7619126,2514.9,2514.8,2.9037696]
[1730516855878,3.7619126,2514.9,2514.8,2.90377016]
[1730516856373,3.7619126,2514.9,2514.8,2.77939738]
[1730516856577,3.7619126,2514.9,2514.8,3.48480891]
[1730516858571,3.7619126,2514.9,2514.8,3.48480482]
[1730516859466,3.24589575,2514.9,2514.8,3.48480482]
[1730516862786,0.1263,2514.9,2514.8,3.48480482]
[1730516863081,0.1263,2514.9,2514.8,4.29005619]
[1730516863271,0.1263,2514.9,2514.8,4.41442186]
[1730516863879,0.1263,2514.9,2514.8,3.83338721]
[1730516864388,0.1263,2514.9,2514.8,3.70902154]
[1730516864578,0.1263,2514.9,2514.8,4.41439302]
[1730516867286,0.1263,2514.9,2514.8,4.29006356]
[1730516867476,0.1263,2514.9,2514.8,4.41442807]
[1730516869172,0.1263,2514.9,2514.8,8.39044166]
[1730516870780,0.1263,2514.9,2514.8,6.87976189]
[1730516870981,0.1263,2514.9,2514.8,8.39047574]
[1730516871580,0.1263,2514.9,2514.8,7.46080648]
[1730516873175,3.24589575,2514.9,2514.8,3.48480648]
[1730516873375,3.24589575,2514.9,2514.8,7.46080648]
[1730516874080,3.24589575,2514.9,2514.8,7.33644067]
[1730516874280,3.24589575,2514.9,2514.8,7.46080939]
[1730516874785,3.24589575,2514.9,2514.8,3.48480939]
[1730516876988,3.24589575,2514.9,2514.8,7.46080939]
[1730516877884,3.24589575,2514.9,2514.8,7.46087769]
[1730516878391,3.24589575,2514.9,2514.8,7.46087841]
[1730516878691,3.24589575,2514.9,2514.8,8.39066484]
[1730516878992,3.24589575,2514.9,2514.8,4.41466484]
[1730516880383,3.24589575,2514.9,2514.8,3.36052981]
[1730516880589,3.24589575,2514.9,2514.8,4.41470785]
[1730516880994,3.24589575,2514.9,2514.8,4.29034774]
[1730516881289,0.1263,2514.9,2514.8,4.41471467]
[1730516882790,0.1263,2514.9,2514.8,5.23271467]
[1730516883690,0.1263,2514.9,2514.8,3.59739738]
[1730516883885,0.1263,2514.9,2514.8,5.23279397]
[1730516886797,0.1263,2514.9,2514.8,4.30293022]
[1730516887197,0.1263,2514.9,2514.8,3.59739738]
[1730516887396,0.1263,2514.9,2514.8,4.30293592]
[1730516887698,0.1263,2514.9,2514.8,3.72176552]
[1730516887897,0.1263,2514.9,2514.8,4.3029382]
[1730516888090,0.1263,2514.9,2514.8,4.17857006]
[1730516888398,0.1263,2514.9,2514.8,4.30293515]
[1730516893793,0.1263,2514.9,2514.8,5.23296267]
[1730516894298,0.1263,2514.9,2514.8,3.59739738]
[1730516894499,0.1263,2514.9,2514.8,5.23311715]
[1730516895300,0.1263,2514.9,2514.8,3.72176643]
[1730516895501,0.1263,2514.9,2514.8,5.23312242]
[1730516898100,0.1263,2514.9,2514.8,5.23312124]
[1730516898303,3.24589575,2514.9,2514.8,5.23312124]
[1730516898504,3.24589575,2514.9,2514.8,5.23321282]
[1730516898697,0.1263,2514.9,2514.8,5.23321282]
[1730516899702,3.24589575,2514.9,2514.8,5.23321282]
[1730516900200,0.1263,2514.9,2514.8,5.23321282]
[1730516900600,3.24589575,2514.9,2514.8,5.23321282]
[1730516901514,3.24589575,2514.9,2514.8,3.72176525]
[1730516901805,3.24589575,2514.9,2514.8,5.23330141]
[1730516902703,0.1263,2514.9,2514.8,5.23330141]
[1730516905107,0.1263,2514.9,2514.8,5.23331159]
[1730516908703,0.1263,2514.9,2514.8,5.23331088]
[1730516908999,0.1263,2514.9,2514.8,5.10894372]
[1730516909300,0.1263,2514.9,2514.8,5.23331061]
[1730516911209,0.1263,2514.9,2514.8,5.23351938]
[1730516912211,0.1263,2514.9,2514.8,3.72176533]
[1730516912511,0.1263,2514.9,2514.8,5.23350489]
[1730516913609,0.1263,2514.9,2514.8,6.39636975]
[1730516914512,0.1263,2514.9,2514.8,6.39594282]
[1730516915710,0.1263,2514.9,2514.8,3.59739738]
[1730516915906,0.1263,2514.9,2514.8,6.39569187]
[1730516919206,0.1263,2514.9,2514.8,4.75972581]
[1730516919417,0.1263,2514.9,2514.8,6.395113]
[1730516919605,0.1263,2514.9,2514.8,3.72175761]
[1730516919812,0.1263,2514.9,2514.8,6.39499664]
[1730516921022,3.64009943,2515.3,2514.9,3.976]
[1730516921217,3.64009943,2515.3,2515.2,1.46154738]
[1730516921415,3.64009943,2515.3,2515.2,4.25914664]
[1730516921720,3.64009943,2515.3,2515.2,9.54464664]
[1730516921916,4.16093114,2515.4,2515.3,0.31816]
[1730516922123,9.88221145,2515.6,2515.5,0.31813]
[1730516922329,9.88221145,2515.6,2515.5,7.0720288]
[1730516922818,9.88221145,2515.6,2515.5,5.56103266]
[1730516923024,9.88221145,2515.6,2515.5,7.26862123]
[1730516923315,9.88221145,2515.6,2515.5,2.36501496]
[1730516923521,9.88221145,2515.6,2515.5,3.18301496]
[1730516923913,9.88221145,2515.6,2515.5,2.40383266]
[1730516924311,9.88221145,2515.6,2515.5,1.58583266]
[1730516924515,9.88221145,2515.6,2515.5,2.27950738]
[1730516924717,1.19511,2515.8,2515.7,0.31811]
[1730516924923,1.19511,2515.8,2515.7,1.46148738]
[1730516927632,0.877,2515.8,2515.7,1.46148738]
[1730516928323,0.877,2515.8,2515.7,1.14337738]
[1730516928522,1.1951,2515.8,2515.7,1.14337738]
[1730516928721,1.1951,2515.8,2515.7,1.46148738]
[1730516929216,1.1951,2515.8,2515.7,1.14337738]
[1730516929420,1.1951,2515.8,2515.7,1.46148738]
[1730516930426,4.4029,2515.8,2515.7,1.46148738]
[1730516930724,4.0848,2515.8,2515.7,1.14337738]
[1730516930931,0.31811,2515.7,2515.6,1.96037738]
[1730516931531,4.40291,2515.8,2515.6,2.27849738]
[1730516931922,3.52591,2515.7,2515.6,2.27849738]
[1730516932320,3.2078,2515.7,2515.6,2.27849738]
[1730516933330,1.19511,2515.8,2515.6,1.13512]
[1730516933633,3.2078,2515.7,2515.6,1.13512]
[1730516933930,1.19511,2515.8,2515.6,1.13512]
[1730516934127,3.2078,2515.7,2515.6,1.13512]
[1730516936224,1.19511,2515.8,2515.7,0.31811]
[1730516936627,5.17031,2515.8,2515.7,0.31811]
[1730516940238,4.8522,2515.8,2515.7,0.31811]
[1730516942231,0.877,2515.8,2515.7,0.31811]
[1730516953550,0.4428,2515.8,2515.7,0.31811]
[1730516955842,0.7609,2515.8,2515.7,0.31811]
[1730516956037,4.418,2515.8,2515.7,0.31811]
[1730516956339,4.418,2515.8,2515.4,1.14337738]
[1730516956340,0.31813,2515.6,2515.4,0.31814]
[1730516956548,0.895,2515.5,2515.4,0.31814]
[1730516957039,4.8702,2515.5,2515.4,0.31814]
[1730516958439,0.895,2515.5,2515.4,0.31814]
[1730516958642,0.4491,2515.5,2515.4,0.31814]
[1730516959246,0.4491,2515.5,2515.4,1.46151738]
[1730516959445,6.83164808,2515.9,2515.4,1.26771163]
[1730516959749,6.83164808,2515.9,2515.8,0.3181]
[1730516960136,3.2078,2515.9,2515.8,1.1678]
[1730516960342,3.2078,2515.9,2515.8,1.624]
[1730516963539,3.2078,2515.9,2515.8,1.3059]
[1730516963736,6.83164808,2515.9,2515.8,1.624]
[1730516965650,3.2078,2515.9,2515.8,1.624]
[1730516967047,3.62384808,2516.0,2515.9,0.31808]
[1730516967251,7.14971808,2516.0,2515.9,0.31808]
[1730516967853,6.83164808,2516.0,2515.9,0.31808]
[1730516968851,6.83164808,2516.0,2515.9,0.44240271]
[1730516969544,6.83164808,2516.0,2515.9,0.44240084]
[1730516970849,3.2078,2516.0,2515.9,0.44240084]
[1730516971552,0.75666,2516.1,2516.0,0.31807]
[1730516972554,0.31806,2516.1,2516.0,0.31807]
[1730516973344,5.66092546,2516.3,2516.2,0.31805]
[1730516973345,4.51754808,2516.3,2516.2,0.31805]
[1730516973545,0.4471,2516.3,2516.2,0.31805]
[1730516973953,0.4471,2516.3,2516.2,0.73775]
[1730516974757,0.76513,2516.3,2516.2,0.4197]
[1730516974957,7.14965808,2516.5,2516.3,0.31803]
[1730516975250,3.52581,2516.5,2516.3,0.31803]
[1730516975457,3.52581,2516.5,2516.4,0.4242]
[1730516976356,3.2078,2516.5,2516.4,0.74222]
[1730516977157,3.2078,2516.5,2516.4,1.88559738]
[1730516978548,3.2078,2516.5,2516.4,0.74222]
[1730516978954,3.2078,2516.5,2516.4,5.85919738]
[1730516979259,3.2078,2516.8,2516.4,5.54117738]
[1730516979563,3.2078,2516.8,2516.7,1.46135738]
[1730516980258,3.2078,2516.8,2516.7,2.27835738]
[1730516980452,3.2078,2516.8,2516.7,2.69955738]
[1730516982753,3.2078,2516.8,2516.7,6.67315738]
[1730516983154,3.2078,2516.8,2516.7,2.69955738]
[1730516983856,0.31795,2517.0,2516.8,0.31797]
[1730516984759,4.80767738,2517.1,2516.7,1.2382]
[1730516984955,0.31797,2516.9,2516.7,1.55618]
[1730516985155,0.31795,2517.0,2516.8,0.31797]
[1730516985357,3.98224,2517.1,2516.9,0.31795]
[1730516987655,3.6643,2517.1,2516.9,0.31795]
[1730516988056,3.98224,2517.1,2516.9,0.31795]
[1730516991364,3.98223,2517.1,2516.9,0.31795]
[1730516992154,0.77443,2517.1,2516.9,0.31795]
[1730516992360,3.6643,2517.1,2516.9,0.31795]
[1730516992560,3.98224,2517.1,2516.9,0.31795]
[1730516993061,0.31795,2517.0,2516.8,0.31797]
[1730516993262,0.31795,2517.0,2516.7,2.69954738]
[1730516993462,4.80767738,2517.1,2516.7,0.73917]
[1730516993663,0.31796,2516.9,2516.7,1.55617]
[1730516993870,4.80767738,2517.1,2516.7,1.55617]
[1730516993871,0.4264,2516.8,2516.7,1.55617]
[1730516994065,0.8523,2516.8,2516.7,1.55617]
[1730517008971,0.4264,2516.8,2516.7,1.55617]
[1730517015283,0.4264,2516.8,2516.1,4.20576302]
[1730517015284,0.27826,2516.5,2516.3,0.27828]
[1730517015591,3.2078,2516.4,2516.3,1.84315738]
[1730517016281,0.27826,2516.5,2516.3,1.84315738]
[1730517016486,0.27826,2516.5,2516.3,2.66015738]
[1730517016986,3.48607,2516.4,2516.3,2.38187738]
[1730517017187,3.48607,2516.4,2516.3,1.56487738]
[1730517017188,3.92967,2516.4,2516.3,1.56487738]
[1730517018089,3.92967,2516.4,2516.3,0.4215]
[1730517018291,4.34837,2516.4,2516.3,0.4215]
[1730517021993,4.0701,2516.4,2516.1,1.09529]
[1730517022287,0.27828,2516.3,2516.1,1.09529]
[1730517022493,0.27828,2516.3,2516.1,1.549]
[1730517023191,0.27828,2516.3,2516.1,1.2707]
[1730517024192,3.48608,2516.3,2516.1,1.549]
[1730517024587,3.2078,2516.3,2516.1,1.2707]
[1730517024783,3.2078,2516.3,2516.2,0.27829]
[1730517024990,3.2078,2516.3,2516.1,3.14666738]
[1730517025293,3.2078,2516.3,2516.2,0.4187]
[1730517025693,1.14057,2516.4,2516.2,0.4187]
[1730517025694,4.34837,2516.4,2516.2,0.4187]
[1730517026289,1.14057,2516.4,2516.2,0.4187]
[1730517026689,4.34837,2516.4,2516.2,0.4187]
[1730517027191,0.27828,2516.3,2516.2,0.4187]
[1730517028793,3.48608,2516.3,2516.2,0.4187]
[1730517029490,3.48608,2516.3,2516.1,0.4537]
[1730517029491,3.48609,2516.3,2516.1,0.4537]
[1730517030495,0.27829,2516.2,2516.1,0.4537]
[1730517031391,4.25269,2516.2,2516.1,0.4537]
[1730517031597,3.48608,2516.3,2516.1,0.4537]
[1730517031798,3.48608,2516.3,2516.1,0.732]
[1730517031998,3.48608,2516.3,2516.1,0.4537]
[1730517032701,0.27829,2516.2,2516.1,0.4537]
[1730517033391,4.25269,2516.2,2516.1,0.4537]
[1730517033604,0.27829,2516.2,2516.1,0.4537]
[1730517033786,4.25269,2516.2,2516.1,0.4537]
[1730517033991,3.9744,2516.2,2516.1,0.4537]
[1730517034391,3.2078,2516.3,2516.1,0.4537]
[1730517034594,0.27829,2516.2,2516.1,0.4537]
[1730517034891,3.48608,2516.3,2516.1,0.732]
[1730517035700,3.2078,2516.3,2516.1,0.732]
[1730517036797,3.48608,2516.3,2516.1,0.732]
[1730517037600,3.2078,2516.3,2516.2,1.42166738]
[1730517037803,3.2078,2516.3,2516.2,2.30806738]
[1730517038098,3.2078,2516.3,2516.2,6.28246738]
[1730517039498,3.6417,2516.9,2516.2,7.27184913]
[1730517039700,3.6417,2516.9,2516.7,0.27822]
[1730517040197,5.06329738,2516.9,2516.7,0.72942]
[1730517040600,5.06329738,2516.9,2516.7,0.72943]
[1730517042705,5.06329738,2516.9,2516.7,1.16313]
[1730517043112,1.57727738,2516.9,2516.7,1.16313]
[1730517043402,4.78507738,2516.9,2516.7,1.16313]
[1730517044098,5.06328738,2516.9,2516.7,1.16313]